lending/lending_fUSD_20251114
["ID","MTS","AMOUNT","RATE_DAILY","PERIOD"]
[393926707,1763097437044,-500.0,0.00041098,120]
[393926708,1763097437068,-500.0,0.00041098,120]
[393926709,1763097437094,-500.0,0.00041098,120]
[393926710,1763097437119,-500.0,0.00041098,120]
[393926711,1763097437144,-500.0,0.00041098,120]
[393926712,1763097437166,-500.0,0.00041098,120]
[393926713,1763097437189,-500.0,0.00041098,120]
[393926714,1763097437212,-500.0,0.00041098,120]
[393926715,1763097437235,-500.0,0.00041098,120]
[393926716,1763097437259,-500.0,0.00041098,120]
[393926717,1763097437282,-500.0,0.00041098,120]
[393926718,1763097437305,-500.0,0.00041098,120]
[393926719,1763097437434,-500.0,0.00041098,120]
[393926720,1763097437458,-500.0,0.00041098,120]
[393926721,1763097437483,-500.0,0.00041098,120]
[393926722,1763097437506,-500.0,0.00041098,120]
[393926723,1763097437531,-500.0,0.00041098,120]
[393926724,1763097437555,-500.0,0.00041098,120]
[393926725,1763097437579,-500.0,0.00041098,120]
[393926726,1763097437619,-500.0,0.00041098,120]
[393926727,1763097437646,-500.0,0.00041098,120]
[393926728,1763097437671,-500.0,0.00041098,120]
[393926729,1763097437695,-500.0,0.00041098,120]
[393926730,1763097437721,-529850.36358537,0.00041098,120]
[393926731,1763097437753,-1687870.586003,0.00041098,120]
[393926732,1763097438051,500.0,0.0004123,30]
[393926733,1763097438115,500.0,0.0004123,30]
[393926734,1763097438190,500.0,0.0004123,30]
[393926735,1763097438256,500.0,0.0004123,30]
[393926736,1763097438497,500.0,0.0004123,30]
[393926737,1763097438610,500.0,0.0004123,30]
[393926738,1763097438711,500.0,0.0004123,30]
[393926739,1763097438782,527.94408683,0.0004123,30]
[393926740,1763097438919,506.19968719,0.0004123,30]
[393926741,1763097440217,500.0,0.0004123,30]
[393926742,1763097440288,500.0,0.0004123,30]
[393926743,1763097440447,500.0,0.0004123,30]
[393926744,1763097440524,500.0,0.0004123,30]
[393926745,1763097440583,500.0,0.0004123,30]
[393926746,1763097440707,500.0,0.0004123,30]
[393926747,1763097441065,501.76751186,0.0004123,30]
[393926748,1763097441235,-157.81361727,0.00016786,2]
[393926749,1763097455905,-228.97651632,0.00016786,2]
[393926750,1763097460928,514.2,0.0004123,30]
[393926751,1763097477754,600.0,0.0004123,30]
[393926752,1763097486151,500.0,0.0004123,30]
[393926753,1763097486425,500.0,0.0004123,30]
[393926754,1763097486662,500.0,0.0004123,30]
[393926755,1763097486890,500.0,0.0004123,30]
[393926756,1763097487142,526.16377481,0.0004123,30]
[393926757,1763097493719,154.918298,0.0004123,120]
[393926758,1763097494102,154.918298,0.0004123,120]
[393926759,1763097494314,152.708987,0.0004123,120]
[393926760,1763097494669,152.708987,0.0004123,120]
[393926761,1763097495006,152.708987,0.0004123,120]
[393926762,1763097495352,152.708987,0.0004123,120]
[393926763,1763097501513,-184.88436641,0.00016786,2]
[393926764,1763097501537,-151.0,0.00016876,2]
[393926765,1763097501573,-151.0,0.00016876,2]
[393926766,1763097501598,-151.0,0.00016876,2]
[393926767,1763097501622,-151.0,0.00016876,2]
[393926768,1763097501648,-151.0,0.00016876,2]
[393926769,1763097501674,-151.0,0.00016876,2]
[393926770,1763097501699,-151.0,0.00016876,2]
[393926771,1763097501725,-154.69945868,0.00016876,2]
[393926772,1763097501750,-151.0,0.00016876,2]
[393926773,1763097501781,-151.0,0.00016876,2]
[393926774,1763097501809,-151.0,0.00016876,2]
[393926775,1763097501835,-151.0,0.00016876,2]
[393926776,1763097501862,-151.0,0.00016876,2]
[393926777,1763097501889,-151.0,0.00016876,2]
[393926778,1763097501915,-151.0,0.00016876,2]
[393926779,1763097501941,-151.0,0.00016876,2]
[393926780,1763097501969,-151.0,0.00016876,2]
[393926781,1763097502000,-151.0,0.00016876,2]
[393926782,1763097502027,-151.0,0.00016876,2]
[393926783,1763097502053,-151.0,0.00016876,2]
[393926784,1763097502079,-151.0,0.00016876,2]
[393926785,1763097502108,-151.0,0.00016876,2]
[393926786,1763097502135,-151.0,0.00016876,2]
[393926787,1763097502160,-500.0,0.00016885,2]
[393926788,1763097502186,-500.0,0.00016885,2]
[393926789,1763097502212,-356.36676528,0.00016885,2]
[393926790,1763097502239,-301.56028555,0.00016885,2]
[393926791,1763097502268,-500.0,0.00016885,2]
[393926792,1763097502300,-500.0,0.00016885,2]
[393926793,1763097502327,-471.35605974,0.00016885,2]
[393926794,1763097502351,-250.0,0.00016886,2]
[393926795,1763097502376,-300.0,0.00016886,2]
[393926796,1763097502402,-500.0,0.00016886,2]
[393926797,1763097502426,-500.0,0.00016886,2]
[393926798,1763097502455,-500.0,0.00016886,2]
[393926799,1763097502485,-500.0,0.00016886,2]
[393926800,1763097502511,-300.0,0.00016957,2]
[393926801,1763097502536,-300.0,0.00016957,2]
[393926802,1763097502564,-300.0,0.00016957,2]
[393926803,1763097502590,-250.0,0.00017037,2]
[393926804,1763097502616,-531.85620126,0.00017573,2]
[393926805,1763097502642,-500.0,0.00017584,2]
[393926806,1763097502667,-500.0,0.00017584,2]
[393926807,1763097502694,-500.0,0.00017584,2]
[393926808,1763097502724,-532.64325832,0.00017584,2]
[393926809,1763097502750,-150.0,0.00018,2]
[393926810,1763097502775,-150.0,0.00018,2]
[393926811,1763097502969,153.805128,0.0004123,120]
[393926812,1763097503045,153.805128,0.0004123,120]
[393926813,1763097503120,153.805128,0.0004123,120]
[393926814,1763097503399,153.805128,0.0004123,120]
[393926815,1763097508155,156.065578,0.0004123,120]
[393926816,1763097508504,156.065578,0.0004123,120]
[393926817,1763097508849,156.065578,0.0004123,120]
[393926818,1763097509196,156.065578,0.0004123,120]
[393926819,1763097509543,156.065578,0.0004123,120]
[393926820,1763097510359,156.065578,0.0004123,120]
[393926821,1763097514813,12282.1259,0.00016786,2]
[393926822,1763097516073,880.9,0.0004123,30]
[393926823,1763097516298,880.9,0.0004123,30]
[393926824,1763097516532,880.9,0.0004123,30]
[393926825,1763097516794,880.9,0.0004123,30]
[393926826,1763097517058,880.9,0.0004123,30]
[393926827,1763097517293,880.9,0.0004123,30]
[393926828,1763097517531,880.9,0.0004123,30]
[393926829,1763097517799,880.9,0.0004123,30]
[393926830,1763097518046,880.9,0.0004123,30]
[393926831,1763097518281,880.9,0.0004123,30]
[393926832,1763097518451,305.200016,0.0004123,30]
[393926833,1763097518525,880.9,0.0004123,30]
[393926834,1763097518763,880.9,0.0004123,30]
[393926835,1763097519022,880.9,0.0004123,30]
[393926836,1763097519250,880.9,0.0004123,30]
[393926837,1763097519491,880.9,0.0004123,30]
[393926838,1763097519744,880.9,0.0004123,30]
[393926839,1763097519992,880.9,0.0004123,30]
[393926840,1763097520227,880.9,0.0004123,30]
[393926841,1763097520472,880.9,0.0004123,30]
[393926842,1763097520730,880.9,0.0004123,30]
[393926843,1763097520986,880.9,0.0004123,30]
[393926844,1763097521216,880.9,0.0004123,30]
[393926845,1763097521444,880.9,0.0004123,30]
[393926846,1763097521692,881.11298473,0.0004123,30]
[393926847,1763097522848,500.0,0.00016886,2]
[393926848,1763097523096,510.52164955,0.00017584,2]
[393926849,1763097527289,168.0,0.00017858,2]
[393926850,1763097535902,500.0,0.0004123,30]
[393926851,1763097536153,499.0,0.0004123,30]
[393926852,1763097551927,500.0,0.0004123,30]
[393926853,1763097552206,528.21422131,0.0004123,30]
[393926854,1763097562199,420000.0,0.00016786,2]
[393926855,1763097581353,500.0,0.0004123,30]
[393926856,1763097581604,500.0,0.0004123,30]
[393926857,1763097581805,500.0,0.00016886,2]
[393926858,1763097581864,500.0,0.0004123,30]
[393926859,1763097582090,500.0,0.0004123,30]
[393926860,1763097582344,535.08114275,0.0004123,30]
[393926861,1763097584978,1000.0,0.00016786,2]
[393926862,1763097608374,500.0,0.00041089,30]
[393926863,1763097608610,500.0,0.00041089,30]
[393926884,1763097615307,500.0,0.00041089,30]
[393926886,1763097617160,303.41876755,0.00041089,30]
[393926887,1763097622887,500.0,0.00041089,30]
[393926888,1763097623136,500.0,0.00041089,30]
[393926889,1763097623402,166.66,0.00041089,30]
[393926891,1763097627219,500.0,0.00041089,30]
[393926892,1763097627327,500.0,0.00041089,30]
[393926894,1763097641234,500.0,0.00041089,30]
[393926895,1763097641464,500.0,0.00041089,30]
[393926896,1763097641710,500.0,0.00041089,30]
[393926897,1763097641977,500.0,0.00041089,30]
[393926899,1763097650498,500.0,0.00041089,30]
[393926900,1763097650735,525.04742638,0.00041089,30]
[393926907,1763097684297,2463.0444318,0.00017041,2]
[393926908,1763097688675,250.0,0.00017,2]
[393926909,1763097690471,485.30626922,0.00041089,30]
[393926912,1763097717108,420000.0,0.00016786,2]
[393926915,1763097732209,573.33,0.00041089,30]
[393926916,1763097735395,152.708989,0.00041089,120]
[393926917,1763097740352,153.80513,0.00041089,120]
[393926919,1763097745669,155.558291,0.00041089,120]
[393926920,1763097745993,155.558291,0.00041089,120]
[393926921,1763097746318,155.558291,0.00041089,120]
[393926922,1763097748706,500.0,0.00041089,30]
[393926923,1763097750648,500.0,0.00041089,30]
[393926928,1763097779334,351.52,0.00041089,30]
[393926929,1763097781325,500.0,0.00041089,30]
[393926930,1763097781566,499.0,0.00041089,30]
[393926931,1763097783543,500.0,0.00041089,30]
[393926932,1763097783685,595.27809259,0.00041089,30]
[393926933,1763097792014,299.78,0.00041089,30]
[393926934,1763097793544,151.949179,0.00041089,120]
[393926935,1763097793835,480.0530135,0.00041089,30]
[393926936,1763097794020,625.74664378,0.00041089,30]
[393926937,1763097794842,151.949179,0.00041089,120]
[393926941,1763097802419,150.939546,0.00041089,120]
[393926942,1763097805280,156.826511,0.00041089,120]
[393926943,1763097805657,156.826511,0.00041089,120]
[393926944,1763097805968,156.826511,0.00041089,120]
[393926946,1763097820974,500.0,0.00041089,30]
[393926947,1763097821228,500.0,0.00041089,30]
[393926949,1763097834243,2000.0,0.00041089,30]
[393926950,1763097834297,2000.0,0.00041089,30]
[393926952,1763097846593,500.0,0.00041089,30]
[393926953,1763097846873,500.0,0.00041089,30]
[393926954,1763097847103,500.0,0.00041089,30]
[393926955,1763097847353,500.0,0.00041089,30]
[393926956,1763097856794,427.06,0.00041089,30]
[393926959,1763097862472,527.17394599,0.00041089,30]
[393926960,1763097869278,500.0,0.00041089,30]
[393926961,1763097869522,500.0,0.00041089,30]
[393926962,1763097869790,500.0,0.00041089,30]
[393926963,1763097870078,500.0,0.00041089,30]
[393926964,1763097870644,500.0,0.00041089,30]
[393926965,1763097870890,500.0,0.00041089,30]
[393926966,1763097871315,500.0,0.00041089,30]
[393926967,1763097871393,500.0,0.00041089,30]
[393926968,1763097871655,500.0,0.00041089,30]
[393926969,1763097871895,500.0,0.00041089,30]
[393926970,1763097872179,500.0,0.00041089,30]
[393926971,1763097872452,500.0,0.00041089,30]
[393926972,1763097872681,500.0,0.00041089,30]
[393926973,1763097872939,500.0,0.00041089,30]
[393926974,1763097873192,500.0,0.00041089,30]
[393926975,1763097873490,420.54777175,0.00041089,30]
[393926976,1763097876004,500.0,0.00041089,30]
[393926977,1763097876258,500.0,0.00041089,30]
[393926978,1763097876509,500.0,0.00041089,30]
[393926979,1763097876845,500.0,0.00041089,30]
[393926980,1763097878418,500.0,0.00041089,30]
[393926981,1763097878785,151.4060891,0.00041089,30]
[393926982,1763097882057,500.0,0.00041089,30]
[393926983,1763097882304,500.0,0.00041089,30]
[393926984,1763097882567,500.0,0.00041089,30]
[393926985,1763097882812,197.84,0.00041089,30]
[393926987,1763097887205,500.0,0.00041089,30]
[393926988,1763097887446,500.0,0.00041089,30]
[393926989,1763097887693,311.56398267,0.00041089,30]
[393926990,1763097888372,500.0,0.00041089,30]
[393926991,1763097888641,535.74,0.00041089,30]
[393926992,1763097888723,500.0,0.00041089,30]
[393926993,1763097888982,522.66,0.00041089,30]
[393926994,1763097896254,500.0,0.00041089,30]
[393926995,1763097896483,500.0,0.00041089,30]
[393926996,1763097896578,500.0,0.00041089,30]
[393926997,1763097896746,500.0,0.00041089,30]
[393926998,1763097896826,500.0,0.00041089,30]
[393926999,1763097896983,500.0,0.00041089,30]
[393927000,1763097897162,500.0,0.00041089,30]
[393927001,1763097897216,500.0,0.00041089,30]
[393927002,1763097897317,500.0,0.00041089,30]
[393927003,1763097897441,500.0,0.00041089,30]
[393927004,1763097897667,500.0,0.00041089,30]
[393927005,1763097897893,500.0,0.00041089,30]
[393927006,1763097898126,500.0,0.00041089,30]
[393927007,1763097898353,646.34,0.00041089,30]
[393927008,1763097901299,500.0,0.00041089,30]
[393927009,1763097901471,500.0,0.00041085,30]
[393927010,1763097901534,500.0,0.00041085,30]
[393927011,1763097901741,500.0,0.00041085,30]
[393927012,1763097901807,527.76,0.00041085,30]
[393927013,1763097905422,500.0,0.00041085,30]
[393927014,1763097905657,500.0,0.00041085,30]
[393927017,1763097905908,500.0,0.00041085,30]
[393927018,1763097906149,527.94408683,0.00041085,30]
[393927019,1763097906839,500.0,0.00041085,30]
[393927020,1763097908321,2128970.94162341,0.00018,2]
[393927021,1763097908464,500.0,0.00041085,30]
[393927022,1763097908702,500.0,0.00041085,30]
[393927023,1763097908959,500.0,0.00041085,30]
[393927024,1763097909260,500.0,0.00041085,30]
[393927025,1763097919070,500.0,0.00041085,30]
[393927026,1763097919320,500.0,0.00041085,30]
[393927027,1763097919515,373.38921154,0.00041085,120]
[393927029,1763097923113,212.15043565,0.00041085,120]
[393927031,1763097930128,500.0,0.00041085,30]
[393927032,1763097930367,500.0,0.00041085,30]
[393927033,1763097931108,600.0,0.00041085,30]
[393927035,1763097937138,514.2,0.00041085,30]
[393927038,1763097940880,500.0,0.00041085,30]
[393927039,1763097941182,500.0,0.00041085,30]
[393927040,1763097947955,500.0,0.00041085,30]
[393927043,1763097958702,508.37816963,0.00041085,30]
[393927044,1763097961966,500.0,0.00041085,30]
[393927045,1763097962452,480.52112795,0.00041085,120]
[393927046,1763097968136,511.13558692,0.00041085,120]
[393927047,1763097969994,680.57462649,0.00041085,120]
[393927048,1763097971421,500.0,0.00041085,30]
[393927050,1763097995486,500.0,0.00041085,30]
[393927053,1763097996429,500.0,0.00041085,30]
[393927054,1763097997995,500.0,0.00041085,30]
[393927055,1763097998227,500.0,0.00041085,30]
[393927056,1763097998474,216.38,0.00041085,30]
[393927057,1763098001789,500.0,0.00041085,30]
[393927058,1763098002938,222.26727226,0.00041085,30]
[393927060,1763098004799,500.0,0.00041085,30]
[393927061,1763098005065,500.0,0.00041085,30]
[393927062,1763098006788,500.0,0.00041085,30]
[393927063,1763098009398,500.0,0.00041085,30]
[393927064,1763098013450,10000.01,0.000162,5]
[393927065,1763098013473,900.12850419,0.000162,5]
[393927066,1763098014534,500.0,0.00041085,30]
[393927069,1763098025646,354.38466405,0.00041085,30]
[393927070,1763098027665,234.71750549,0.00041085,30]
[393927072,1763098029607,500.0,0.00041085,30]
[393927073,1763098029856,500.0,0.00041085,30]
[393927074,1763098033581,500.0,0.00041085,30]
[393927075,1763098033819,500.0,0.00041085,30]
[393927076,1763098034105,500.0,0.00041085,30]
[393927077,1763098034524,566.21564385,0.00041085,30]
[393927078,1763098042934,791.61648626,0.00041085,30]
[393927089,1763098096652,600.0,0.00041085,30]
[393927091,1763098099786,500.0,0.00041085,30]
[393927092,1763098099853,500.0,0.00041085,30]
[393927093,1763098099907,644.43519336,0.00041085,120]
[393927095,1763098101959,248.61426346,0.00041085,120]
[393927096,1763098103749,185.81996894,0.00041085,120]
[393927097,1763098104592,500.0,0.00041085,30]
[393927098,1763098104752,2828.19842138,0.00041085,120]
[393927099,1763098104846,500.0,0.00041085,30]
[393927103,1763098109245,296.04836025,0.00041085,120]
[393927104,1763098109848,500.0,0.00041085,30]
[393927105,1763098110081,500.0,0.00041085,30]
[393927106,1763098111172,710.60665074,0.00041085,120]
[393927109,1763098114919,500.0,0.00041085,30]
[393927110,1763098115164,500.0,0.00041085,30]
[393927111,1763098117722,6173.00546492,0.00041085,30]
[393927118,1763098120097,500.0,0.00041085,30]
[393927120,1763098120357,501.33113189,0.00041085,30]
[393927124,1763098137894,305.200016,0.00041085,30]
[393927125,1763098157224,1017.83,0.00016825,2]
[393927126,1763098196210,501.58907644,0.00041085,30]
[393927127,1763098219775,500.0,0.00041082,30]
[393927128,1763098220090,500.0,0.00041082,30]
[393927129,1763098226009,500.0,0.00041082,30]
[393927130,1763098227342,500.0,0.00041082,30]
[393927131,1763098227687,500.0,0.00041082,30]
[393927132,1763098227928,510.92902816,0.00041082,30]
[393927145,1763098231907,-163.48400664,0.00016999,2]
[393927146,1763098231918,-500.0,0.00016999,2]
[393927147,1763098231928,-300.70741836,0.00016999,2]
[393927148,1763098231939,-500.0,0.00016999,2]
[393927149,1763098231950,-500.0,0.00016999,2]
[393927150,1763098231962,-500.0,0.00016999,2]
[393927151,1763098231973,-506.34191976,0.00017,2]
[393927152,1763098231989,-525.74328535,0.00017,2]
[393927153,1763098232003,-1145.67076436,0.00017,2]
[393927154,1763098232016,-101045.60385408,0.00017,2]
[393927155,1763098232037,-667.21344307,0.00017,2]
[393927162,1763098237928,-316.2,0.00017,2]
[393927378,1763098239974,-9774.6102,0.00017,2]
[393927389,1763098240024,-450.10941216,0.00017,2]
[393927391,1763098240036,-976.89,0.00017,2]
[393927394,1763098240059,-352.88913932,0.00017,2]
[393927459,1763098242236,500.0,0.00041082,30]
[393927460,1763098242515,500.0,0.00041082,30]
[393927476,1763098242780,166.66,0.00041082,30]
[393927501,1763098242965,-62245.40484074,0.00017,2]
[393927504,1763098242976,-1800.0,0.000172,6]
[393927506,1763098242986,-3452.19224272,0.000173,6]
[393927508,1763098242997,-247.80775728,0.000173,6]
[393927510,1763098243007,-274.05685549,0.000174,6]
[393927512,1763098243020,-5325.94314451,0.000174,6]
[393927514,1763098243030,-7400.0,0.000175,6]
[393927516,1763098243040,-4183.62054745,0.000176,6]
[393927520,1763098243808,-1954.22,0.000176,6]
[393927521,1763098243868,-3162.15945255,0.000176,6]
[393927522,1763098243879,-1800.0,0.000177,6]
[393927523,1763098243889,-1800.0,0.000178,6]
[393927524,1763098243899,-240.43191382,0.00017899,2]
[393927525,1763098243909,-1800.0,0.000179,6]
[393927526,1763098243920,-226.77554458,0.000179,3]
[393927527,1763098243930,-743.83308905,0.000179,2]
[393927531,1763098246227,-10897.25210446,0.000179,2]
[393927532,1763098246239,-5232.00002825,0.000179,2]
[393927533,1763098246249,-34954.55582644,0.000179,2]
[393927537,1763098246394,500.0,0.00041082,30]
[393927538,1763098246659,500.0,0.00041082,30]
[393927540,1763098261075,500.0,0.00041082,30]
[393927541,1763098261323,500.0,0.00041082,30]
[393927542,1763098261560,500.0,0.00041082,30]
[393927543,1763098261841,500.0,0.00041082,30]
[393927544,1763098275264,153.429594,0.00041082,120]
[393927545,1763098275473,168.680305,0.00041082,120]
[393927546,1763098275622,153.429594,0.00041082,120]
[393927547,1763098275822,168.680305,0.00041082,120]
[393927548,1763098276008,153.429594,0.00041082,120]
[393927549,1763098276345,168.680305,0.00041082,120]
[393927550,1763098276406,153.429594,0.00041082,120]
[393927551,1763098276732,153.429594,0.00041082,120]
[393927552,1763098277394,500.0,0.00041082,30]
[393927553,1763098277656,300.0,0.00041082,30]
[393927554,1763098281520,156.950453,0.00041082,120]
[393927555,1763098281918,156.950453,0.00041082,120]
[393927557,1763098287089,154.550207,0.00041082,120]
[393927558,1763098287478,154.550207,0.00041082,120]
[393927559,1763098287826,154.550207,0.00041082,120]
[393927560,1763098288193,154.550207,0.00041082,120]
[393927561,1763098288523,154.550207,0.00041082,120]
[393927562,1763098288860,154.550207,0.00041082,120]
[393927563,1763098325283,419.76079075,0.00041082,120]
[393927564,1763098325685,151.0,0.00041082,120]
[393927565,1763098325742,250.0,0.00041082,120]
[393927566,1763098325867,500.0,0.00041082,120]
[393927567,1763098325930,250.0,0.00041082,120]
[393927568,1763098326342,250.0,0.00041082,120]
[393927569,1763098326398,156.587,0.00041082,120]
[393927570,1763098326481,500.0,0.00041082,120]
[393927571,1763098326537,250.0,0.00041082,120]
[393927572,1763098326960,162.380719,0.00041082,120]
[393927573,1763098327114,500.0,0.00041082,120]
[393927574,1763098327172,250.0,0.00041082,120]
[393927575,1763098327231,250.0,0.00041082,120]
[393927576,1763098327596,168.3888056,0.00041082,120]
[393927577,1763098327710,500.0,0.00041082,120]
[393927578,1763098327767,250.0,0.00041082,120]
[393927579,1763098327823,620.0,0.00041082,120]
[393927580,1763098327879,250.0,0.00041082,120]
[393927581,1763098328214,168.3888056,0.00041082,120]
[393927582,1763098328332,500.0,0.00041082,120]
[393927583,1763098328388,642.94,0.00041082,120]
[393927584,1763098328444,250.0,0.00041082,120]
[393927585,1763098328502,250.0,0.00041082,120]
[393927586,1763098328559,500.0,0.00041082,120]
[393927587,1763098329007,250.0,0.00041082,120]
[393927588,1763098329067,500.0,0.00041082,120]
[393927589,1763098329466,250.0,0.00041082,120]
[393927590,1763098329600,250.0,0.00041082,120]
[393927591,1763098329655,500.0,0.00041082,120]
[393927592,1763098330124,250.0,0.00041082,120]
[393927593,1763098330237,250.0,0.00041082,120]
[393927594,1763098330425,500.0,0.00041082,120]
[393927595,1763098330490,151.0,0.00041082,120]
[393927596,1763098330642,250.0,0.00041082,120]
[393927597,1763098330736,250.0,0.00041082,120]
[393927598,1763098330830,250.0,0.00041082,120]
[393927599,1763098330954,200.0,0.00041082,120]
[393927600,1763098331047,151.0,0.00041082,120]
[393927601,1763098331159,500.0,0.00041082,120]
[393927602,1763098331285,250.0,0.00041082,120]
[393927603,1763098331361,250.0,0.00041082,120]
[393927604,1763098331424,151.0,0.00041082,120]
[393927605,1763098331479,500.0,0.00041082,120]
[393927606,1763098331534,250.0,0.00041082,120]
[393927607,1763098331593,200.0,0.00041082,120]
[393927608,1763098331707,151.0,0.00041082,120]
[393927609,1763098331779,500.0,0.00041082,120]
[393927610,1763098331921,250.0,0.00041082,120]
[393927611,1763098331983,250.0,0.00041082,120]
[393927612,1763098332042,151.0,0.00041082,120]
[393927613,1763098332107,500.0,0.00041082,120]
[393927614,1763098332169,250.0,0.00041082,120]
[393927615,1763098332242,200.0,0.00041082,120]
[393927616,1763098332319,151.0,0.00041082,120]
[393927617,1763098332484,500.0,0.00041082,120]
[393927618,1763098332587,250.0,0.00041082,120]
[393927619,1763098332778,200.0,0.00041082,120]
[393927620,1763098332834,500.0,0.00041082,120]
[393927621,1763098332940,151.0,0.00041082,120]
[393927622,1763098333019,250.0,0.00041082,120]
[393927623,1763098333381,200.0,0.00041082,120]
[393927624,1763098333462,500.0,0.00041082,120]
[393927625,1763098333546,151.0,0.00041082,120]
[393927626,1763098333609,500.0,0.00041082,120]
[393927627,1763098333668,250.0,0.00041082,120]
[393927628,1763098333979,200.0,0.00041082,120]
[393927629,1763098334160,151.0,0.00041082,120]
[393927630,1763098334250,250.0,0.00041082,120]
[393927631,1763098334583,200.0,0.00041082,120]
[393927632,1763098334800,151.0,0.00041082,120]
[393927633,1763098335138,250.0,0.00041082,120]
[393927634,1763098335365,151.0,0.00041082,120]
[393927635,1763098335563,250.0,0.00041082,120]
[393927636,1763098336154,250.0,0.00041082,120]
[393927637,1763098336698,151.0,0.00041082,120]
[393927638,1763098336753,250.0,0.00041082,120]
[393927639,1763098336808,250.0,0.00041082,120]
[393927640,1763098336869,250.0,0.00041082,120]
[393927641,1763098337034,200.0,0.00041082,120]
[393927642,1763098337396,151.0,0.00041082,120]
[393927643,1763098337456,250.0,0.00041082,120]
[393927644,1763098337513,250.0,0.00041082,120]
[393927645,1763098337622,200.0,0.00041082,120]
[393927646,1763098338022,250.0,0.00041082,120]
[393927647,1763098338084,151.0,0.00041082,120]
[393927648,1763098338140,250.0,0.00041082,120]
[393927649,1763098338299,213.04693421,0.00041082,120]
[393927650,1763098338361,151.0,0.00041082,120]
[393927651,1763098338662,250.0,0.00041082,120]
[393927652,1763098338719,151.0,0.00041082,120]
[393927653,1763098338805,250.0,0.00041082,120]
[393927654,1763098338969,151.0,0.00041082,120]
[393927655,1763098339301,250.0,0.00041082,120]
[393927656,1763098339360,151.0,0.00041082,120]
[393927657,1763098339426,250.0,0.00041082,120]
[393927658,1763098339705,151.0,0.00041082,120]
[393927659,1763098339998,151.0,0.00041082,120]
[393927660,1763098340056,250.0,0.00041082,120]
[393927661,1763098340110,500.0,0.00041082,120]
[393927662,1763098340330,151.0,0.00041082,120]
[393927663,1763098340615,151.0,0.00041082,120]
[393927664,1763098340675,250.0,0.00041082,120]
[393927665,1763098340734,500.0,0.00041082,120]